bitfinex/quotes_BTCUSD_20230831
["timestamp","ask_amount","ask_price","bid_price","bid_amount"]
[1693508095139,0.9974,26313.0,26312.0,0.2318]
[1693508095352,0.9974,26313.0,26312.0,1.391964]
[1693508095353,1.14404733,26313.0,26312.0,1.391964]
[1693508096067,1.14404733,26313.0,26312.0,2.532128]
[1693508096263,1.14404733,26313.0,26312.0,2.73233891]
[1693508096523,0.9974,26313.0,26312.0,1.98039731]
[1693508096736,1.1440222,26313.0,26312.0,1.41231531]
[1693508097805,1.1440222,26313.0,26312.0,1.98239731]
[1693508098010,0.1466222,26313.0,26312.0,1.98239731]
[1693508098437,0.1466222,26313.0,26312.0,2.23764914]
[1693508098644,0.1466222,26313.0,26312.0,1.98239731]
[1693508099258,0.1466222,26313.0,26312.0,1.98276186]
[1693508100916,0.1466222,26313.0,26312.0,1.41267986]
[1693508101124,0.1466222,26313.0,26312.0,1.28042855]
[1693508101394,0.1466222,26313.0,26312.0,1.26042855]
[1693508101815,0.43220554,26313.0,26312.0,0.09589845]
[1693508102018,1.08527716,26313.0,26312.0,0.00436455]
[1693508102223,1.56511885,26313.0,26312.0,0.00436455]
[1693508102428,0.99505885,26313.0,26312.0,0.00436455]
[1693508104054,1.17549547,26313.0,26312.0,0.00436455]
[1693508104259,0.88991213,26313.0,26312.0,0.00436455]
[1693508104460,0.9921704,26313.0,26312.0,0.00436455]
[1693508105130,2.25717735,26313.0,26312.0,0.00436455]
[1693508105948,2.38432805,26313.0,26312.0,0.00436455]
[1693508106147,2.38432805,26313.0,26312.0,0.004]
[1693508106387,2.38432805,26313.0,26312.0,0.002]
[1693508106585,2.38932805,26313.0,26312.0,0.002]
[1693508107167,2.38432805,26313.0,26307.0,1.256261]
[1693508107346,0.059845,26309.0,26307.0,1.256261]
[1693508107560,0.15031862,26309.0,26307.0,1.256261]
[1693508107969,0.45485817,26309.0,26307.0,1.256261]
[1693508108823,0.039845,26307.0,26304.0,1.30300923]
[1693508109007,0.039845,26305.0,26304.0,0.70250031]
[1693508109247,0.039845,26305.0,26304.0,0.570249]
[1693508110289,0.039845,26305.0,26304.0,0.608249]
[1693508110496,0.039845,26305.0,26304.0,0.622249]
[1693508110925,0.039845,26305.0,26304.0,0.608249]
[1693508111131,0.039845,26305.0,26304.0,0.646249]
[1693508112409,0.51800075,26305.0,26304.0,0.076]
[1693508112620,0.88963999,26305.0,26304.0,0.076]
[1693508112832,1.93963109,26305.0,26304.0,0.076]
[1693508113044,2.12057833,26305.0,26304.0,0.076]
[1693508113253,2.29739704,26305.0,26304.0,0.076]
[1693508113430,2.37047535,26305.0,26304.0,0.038]
[1693508113683,2.37047535,26305.0,26301.0,0.1159]
[1693508113684,0.059845,26303.0,26301.0,0.1159]
[1693508113889,0.42752585,26302.0,26300.0,0.70257831]
[1693508114112,0.059845,26301.0,26300.0,0.13225131]
[1693508114700,0.059845,26301.0,26299.0,1.140718]
[1693508115328,0.039845,26301.0,26299.0,1.140718]
[1693508115531,0.039845,26300.0,26299.0,1.256618]
[1693508115733,0.039845,26300.0,26299.0,1.826981]
[1693508116147,0.039845,26300.0,26299.0,2.06971987]
[1693508116358,0.039845,26302.0,26299.0,2.18379987]
[1693508116577,0.039845,26302.0,26301.0,0.1159]
[1693508116779,0.039845,26302.0,26301.0,2.54943131]
[1693508116988,0.039845,26302.0,26301.0,2.61429131]
[1693508117216,0.039845,26302.0,26301.0,2.61567131]
[1693508117422,0.039845,26302.0,26301.0,2.89402044]
[1693508117631,0.039845,26302.0,26301.0,2.63121131]
[1693508117845,0.039845,26302.0,26301.0,2.54943131]
[1693508118027,0.039845,26302.0,26301.0,1.97911131]
[1693508118442,0.039845,26302.0,26301.0,1.42279131]
[1693508118856,0.26958078,26302.0,26301.0,0.83247131]
[1693508119061,0.26958078,26302.0,26301.0,0.73157131]
[1693508119701,0.039845,26302.0,26301.0,0.73157131]
[1693508119904,0.039845,26302.0,26301.0,1.30189131]
[1693508120309,0.039845,26302.0,26301.0,2.05467313]
[1693508121069,0.039845,26302.0,26301.0,1.85586]
[1693508125389,0.039845,26302.0,26301.0,1.87586]
[1693508125553,0.039845,26302.0,26301.0,1.94534]
[1693508125764,0.039845,26302.0,26301.0,2.00811131]
[1693508129972,0.039845,26302.0,26301.0,2.07861131]
[1693508130169,0.039845,26302.0,26301.0,2.07207131]
[1693508130353,0.039845,26302.0,26301.0,2.00811131]
[1693508130559,0.039845,26302.0,26301.0,2.07645131]
[1693508130871,0.039845,26302.0,26301.0,2.07519131]
[1693508131084,0.039845,26302.0,26301.0,2.07345131]
[1693508131289,0.039845,26302.0,26301.0,2.07369131]
[1693508131490,0.039845,26302.0,26301.0,2.07699131]
[1693508131699,0.039845,26302.0,26301.0,2.07363131]
[1693508132095,0.039845,26302.0,26301.0,2.07429131]
[1693508132300,0.039845,26302.0,26301.0,2.07468379]
[1693508132503,0.039845,26302.0,26301.0,2.07702379]
[1693508132708,0.039845,26302.0,26301.0,2.00856379]
[1693508132931,0.039845,26302.0,26301.0,2.07936379]
[1693508133130,0.039845,26302.0,26301.0,2.07684379]
[1693508133326,0.039845,26302.0,26301.0,2.07672379]
[1693508133585,0.039845,26302.0,26301.0,2.07432379]
[1693508133782,0.039845,26302.0,26301.0,2.07384379]
[1693508133986,0.039845,26302.0,26301.0,2.00856379]
[1693508139844,0.039845,26302.0,26301.0,2.07294379]
[1693508140062,0.039845,26302.0,26301.0,2.07378379]
[1693508140235,0.2261218,26307.0,26303.0,0.000155]
[1693508140433,1.190945,26309.0,26306.0,0.1159]
[1693508140663,0.019845,26308.0,26307.0,1.16038]
[1693508140862,0.019845,26308.0,26307.0,2.3796]
[1693508141063,0.019845,26308.0,26307.0,2.37966]
[1693508141263,0.039845,26308.0,26307.0,2.37320902]
[1693508141441,0.039845,26308.0,26307.0,2.37074902]
[1693508141638,0.019845,26308.0,26307.0,2.37212902]
[1693508141838,0.039845,26308.0,26307.0,2.36816902]
[1693508142036,0.039845,26308.0,26307.0,2.36756902]
[1693508142243,0.039845,26308.0,26307.0,2.30320902]
[1693508143118,0.039845,26308.0,26307.0,2.30520902]
[1693508144703,0.09044872,26310.0,26307.0,2.30520902]
[1693508144704,0.09044872,26310.0,26309.0,0.000155]
[1693508144932,0.26602905,26313.0,26312.0,0.1159]
[1693508144933,0.13029372,26313.0,26312.0,0.1159]
[1693508145135,0.13029372,26313.0,26312.0,1.391964]
[1693508145261,0.13029372,26313.0,26312.0,1.962046]
[1693508145699,0.13029372,26313.0,26312.0,2.532128]
[1693508146282,0.13029372,26313.0,26312.0,2.416228]
[1693508146702,0.039845,26313.0,26312.0,2.416228]
[1693508149186,0.039845,26313.0,26312.0,2.41667242]
[1693508149590,0.039845,26313.0,26312.0,2.41867242]
[1693508149798,0.039845,26313.0,26312.0,2.41967242]
[1693508154081,0.039845,26313.0,26312.0,2.4508139]
[1693508154288,0.039845,26313.0,26312.0,0.68942642]
[1693508154289,0.71012527,26313.0,26312.0,0.68942642]
[1693508155328,0.71012527,26313.0,26312.0,1.25950842]
[1693508156370,0.40752585,26313.0,26312.0,1.25950842]
[1693508160576,0.40752585,26313.0,26312.0,1.44246746]
[1693508160577,0.039845,26313.0,26312.0,1.44246746]
[1693508160776,0.039845,26313.0,26312.0,2.01254946]
[1693508162863,0.0201,26314.0,26312.0,2.25102946]
[1693508163071,0.0201,26314.0,26313.0,1.57602]
[1693508163215,0.0201,26314.0,26313.0,2.14608]
[1693508163875,0.0201,26314.0,26313.0,2.99986313]
[1693508164085,0.0201,26314.0,26313.0,2.99878313]
[1693508164279,0.0201,26314.0,26313.0,3.00150651]
[1693508164478,0.0201,26314.0,26313.0,2.99934651]
[1693508164680,0.0201,26314.0,26313.0,3.00012651]
[1693508164881,0.0201,26314.0,26313.0,2.99970651]
[1693508165084,0.0201,26314.0,26313.0,2.99892651]
[1693508165254,0.0201,26314.0,26313.0,2.99886651]
[1693508165453,0.0201,26314.0,26313.0,3.03598651]
[1693508165669,0.0201,26314.0,26313.0,3.03400651]
[1693508165873,0.0201,26314.0,26313.0,3.03346651]
[1693508166221,0.0201,26314.0,26313.0,3.07022651]
[1693508166445,0.0201,26314.0,26313.0,3.06830651]
[1693508166647,0.0201,26314.0,26313.0,3.06704651]
[1693508166815,0.0201,26314.0,26313.0,3.06518651]
[1693508167018,0.0201,26314.0,26313.0,2.69642566]
[1693508167223,0.0201,26314.0,26313.0,2.42458191]
[1693508167547,0.0201,26314.0,26313.0,2.43124191]
[1693508167741,0.0201,26314.0,26313.0,2.43154191]
[1693508167943,0.0201,26314.0,26313.0,2.43148191]
[1693508168174,0.0201,26314.0,26313.0,2.43112191]
[1693508168476,0.0201,26314.0,26313.0,2.79843095]
[1693508168670,0.0201,26314.0,26313.0,2.79879095]
[1693508168887,0.0201,26314.0,26313.0,2.79633095]
[1693508169293,0.0201,26314.0,26313.0,2.79567095]
[1693508169516,0.0201,26314.0,26313.0,2.35402191]
[1693508169718,0.0201,26314.0,26313.0,2.33402191]
[1693508170511,0.0201,26314.0,26313.0,2.20052338]
[1693508173523,0.0201,26314.0,26313.0,2.2316935]
[1693508175831,0.0201,26314.0,26313.0,2.2956535]
[1693508176032,0.0201,26314.0,26313.0,2.80326431]
[1693508176246,0.0201,26314.0,26313.0,2.79108431]
[1693508176449,0.0201,26317.0,26313.0,2.79108431]
[1693508176450,0.0201,26317.0,26313.0,3.45004516]
[1693508176654,0.0201,26317.0,26316.0,0.116055]
[1693508176855,0.0201,26317.0,26316.0,2.82663176]
[1693508177067,0.0201,26317.0,26316.0,3.2144208]
[1693508177289,0.0201,26319.0,26318.0,0.000155]
[1693508177493,0.0201,26319.0,26318.0,2.19359185]
[1693508177701,0.0201,26319.0,26318.0,2.64418861]
[1693508177905,0.0201,26319.0,26318.0,3.09561626]
[1693508178105,0.0201,26319.0,26318.0,3.09291626]
[1693508178318,0.0201,26319.0,26318.0,3.66910826]
[1693508178520,0.0201,26319.0,26318.0,3.92836826]
[1693508178728,0.0201,26319.0,26318.0,3.92548826]
[1693508178903,0.0201,26319.0,26318.0,4.37382826]
[1693508179109,0.0201,26319.0,26318.0,4.37334826]
[1693508179310,0.0201,26320.0,26319.0,0.000155]
[1693508179512,0.0201,26320.0,26319.0,4.24651165]
[1693508179671,0.0201,26320.0,26319.0,4.36603165]
[1693508179872,0.0201,26320.0,26319.0,4.36429165]
[1693508180099,0.0201,26320.0,26319.0,4.36537165]
[1693508180311,0.9974,26326.0,26325.0,0.000155]
[1693508180521,1.037245,26331.0,26327.0,0.000155]
[1693508180730,1.037245,26331.0,26330.0,0.1159]
[1693508180731,0.039845,26331.0,26330.0,0.1159]
[1693508180942,0.039845,26331.0,26330.0,1.844976]
[1693508180943,0.14597637,26331.0,26330.0,1.844976]
[1693508181153,0.0201,26332.0,26330.0,2.21313111]
[1693508181390,0.0201,26332.0,26331.0,0.91891747]
[1693508181594,0.0201,26332.0,26331.0,2.69650747]
[1693508181799,0.0201,26332.0,26331.0,2.70760747]
[1693508182008,0.0201,26332.0,26331.0,2.72344747]
[1693508182236,0.0201,26332.0,26331.0,3.71316332]
[1693508182447,0.0201,26332.0,26331.0,3.34542332]
[1693508182674,0.0201,26332.0,26331.0,3.36536332]
[1693508182880,0.0201,26332.0,26331.0,3.37448332]
[1693508183101,0.0201,26336.0,26331.0,3.58442332]
[1693508183326,1.0175,26339.0,26338.0,0.3987]
[1693508183543,0.0201,26340.0,26338.0,4.30437261]
[1693508183752,0.0201,26340.0,26339.0,1.45677761]
[1693508183985,0.0201,26340.0,26339.0,3.41232682]
[1693508184189,0.0201,26346.0,26340.0,0.34442071]
[1693508184425,0.016684,26349.0,26348.0,0.12]
[1693508184627,0.9974,26356.0,26351.0,0.02]
[1693508184856,0.9974,26356.0,26355.0,0.1159]
[1693508185076,0.2741638,26358.0,26355.0,1.71279876]
[1693508185313,0.0599638,26356.0,26355.0,0.13859676]
[1693508185534,0.0399638,26353.0,26351.0,0.267811]
[1693508185745,0.0399638,26353.0,26351.0,0.268811]
[1693508185954,0.36768085,26352.0,26351.0,0.1159]
[1693508186163,0.36768085,26352.0,26348.0,0.037]
[1693508186164,0.0599638,26349.0,26348.0,0.037]
[1693508186367,0.57471699,26349.0,26348.0,0.037]
[1693508186583,0.42764465,26349.0,26348.0,0.037]
[1693508186792,0.0399638,26345.0,26343.0,0.1159]
[1693508187203,0.03952438,26345.0,26343.0,0.1159]
[1693508187414,0.03952438,26345.0,26341.0,0.1539]
[1693508187415,0.55427757,26345.0,26341.0,0.1539]
[1693508187621,0.0199638,26342.0,26339.0,0.569492]
[1693508187852,0.14707234,26341.0,26339.0,0.569492]
[1693508188059,0.14707234,26341.0,26338.0,0.723415]
[1693508188060,0.18659672,26341.0,26338.0,0.569515]
[1693508188475,0.18659672,26341.0,26337.0,0.569537]
[1693508188691,0.18659672,26341.0,26339.0,0.003]
[1693508188899,0.03952438,26341.0,26339.0,0.003]
[1693508189385,0.03952438,26341.0,26339.0,0.016]
[1693508189596,0.03952438,26341.0,26340.0,0.1539]
[1693508190238,0.04252438,26341.0,26340.0,0.1539]
[1693508190649,0.03952438,26341.0,26340.0,0.1539]
[1693508191057,0.03952438,26341.0,26336.0,0.4539]
[1693508191058,0.03952438,26339.0,26336.0,1.593004]
[1693508191253,0.18659672,26339.0,26337.0,0.3]
[1693508191503,0.18659672,26339.0,26337.0,0.869538]
[1693508191504,0.03952438,26339.0,26337.0,0.869538]
[1693508191709,0.0199638,26339.0,26337.0,0.869538]
[1693508191961,0.03952438,26340.0,26338.0,0.1539]
[1693508192164,0.03952438,26340.0,26339.0,0.569497]
[1693508192375,0.0199638,26340.0,26339.0,1.378594]
[1693508192597,0.03952438,26340.0,26339.0,1.312894]
[1693508193125,0.03952438,26340.0,26339.0,0.743397]
[1693508193126,0.05952438,26340.0,26339.0,0.743397]
[1693508193383,0.05952438,26340.0,26339.0,0.1739]
[1693508193600,0.0199638,26340.0,26339.0,0.1739]
[1693508193816,0.0199638,26340.0,26339.0,1.951811]
[1693508194033,0.0199638,26340.0,26339.0,1.981431]
[1693508194237,0.01956058,26341.0,26339.0,1.975911]
[1693508194443,0.01956058,26341.0,26339.0,1.910391]
[1693508194662,0.0199638,26340.0,26339.0,1.910391]
[1693508195281,0.0199638,26340.0,26339.0,1.936391]
[1693508195706,0.03952438,26341.0,26339.0,1.366894]
[1693508195918,0.0199638,26340.0,26339.0,1.366894]
[1693508196138,0.0199638,26340.0,26339.0,0.054]
[1693508196364,0.03952438,26341.0,26339.0,0.054]
[1693508196569,0.03952438,26341.0,26338.0,1.139026]
[1693508196773,0.03952438,26341.0,26339.0,0.584494]
[1693508197190,0.03952438,26341.0,26340.0,0.2693007]
[1693508197404,0.03952438,26342.0,26340.0,1.4082527]
[1693508197618,0.3863,26343.0,26341.0,0.02]
[1693508197830,0.3863,26343.0,26342.0,1.292764]
[1693508198039,0.03952438,26344.0,26342.0,2.09815847]
[1693508198263,0.03952438,26344.0,26342.0,2.03389847]
[1693508198644,0.232,26345.0,26343.0,0.02]
[1693508198820,0.27152438,26345.0,26344.0,1.292678]
[1693508199024,0.27152438,26345.0,26344.0,1.312678]
[1693508199249,0.03952438,26345.0,26344.0,1.55561125]
[1693508199446,0.03952438,26345.0,26344.0,2.12500025]
[1693508199818,0.03952438,26345.0,26344.0,1.882067]
[1693508200839,0.03952438,26345.0,26344.0,1.885067]
[1693508201046,0.03952438,26345.0,26344.0,2.25274785]
[1693508201172,0.03952438,26345.0,26344.0,1.385458]
[1693508201379,0.03952438,26345.0,26344.0,1.315678]
[1693508201584,0.03952438,26345.0,26344.0,2.11974455]
[1693508202437,0.03952438,26345.0,26344.0,1.886067]
[1693508203057,0.27152438,26347.0,26344.0,1.963047]
[1693508203258,0.03952438,26347.0,26346.0,0.1539]
[1693508203459,0.1586,26348.0,26346.0,1.861938]
[1693508203675,0.27502438,26349.0,26346.0,1.861938]
[1693508203676,1.03692438,26351.0,26347.0,0.76638085]
[1693508203893,0.03952438,26351.0,26350.0,0.1539]
[1693508204102,0.03952438,26351.0,26350.0,0.1739]
[1693508204328,0.03952438,26351.0,26350.0,2.033607]
[1693508204761,0.03952438,26351.0,26350.0,0.32583]
[1693508204974,0.28524754,26351.0,26350.0,0.1739]
[1693508205418,0.28524754,26351.0,26350.0,0.1539]
[1693508205594,0.03952438,26351.0,26350.0,0.1669]
[1693508206006,0.03952438,26351.0,26350.0,1.325418]
[1693508206325,0.03952438,26351.0,26350.0,1.339418]
[1693508206527,0.03952438,26351.0,26350.0,0.2009]
[1693508206689,0.03952438,26351.0,26350.0,0.027]
[1693508207109,0.03952438,26351.0,26350.0,0.596259]
[1693508207513,0.03952438,26351.0,26350.0,0.582259]
[1693508207712,0.03952438,26351.0,26350.0,0.571259]
[1693508208174,0.03952438,26351.0,26350.0,0.572259]
[1693508208751,0.26545233,26351.0,26350.0,0.003]
[1693508209324,0.03952438,26351.0,26350.0,0.003]
[1693508209529,0.03952438,26351.0,26350.0,0.001]
[1693508209763,0.03952438,26351.0,26350.0,0.002]
[1693508210415,0.03952438,26351.0,26350.0,0.001]
[1693508210865,0.65391438,26351.0,26347.0,0.1539]
[1693508211081,0.03952438,26349.0,26346.0,1.138665]
[1693508211280,0.18659672,26349.0,26347.0,0.3]
[1693508211487,0.03952438,26349.0,26347.0,0.3]
[1693508211894,0.40720523,26349.0,26347.0,0.3]
[1693508212102,0.36768085,26348.0,26344.0,0.723286]
[1693508212325,0.20659672,26347.0,26346.0,0.013]
[1693508212530,2.32297009,26347.0,26340.0,0.569463]
[1693508212743,0.77411898,26346.0,26341.0,1.09475447]
[1693508212952,1.34347698,26346.0,26341.0,1.09475447]
[1693508213162,0.03952438,26343.0,26341.0,1.09475447]
[1693508213561,0.40720523,26343.0,26341.0,1.09475447]
[1693508214378,0.41520523,26343.0,26341.0,1.09475447]
[1693508214550,0.03952438,26342.0,26341.0,1.09475447]
[1693508215755,0.03952438,26342.0,26341.0,1.09575447]
[1693508216186,0.03952438,26342.0,26341.0,1.09975447]
[1693508216764,0.03952438,26342.0,26341.0,1.09575447]
[1693508216969,0.70453965,26342.0,26341.0,1.09975447]
[1693508217169,1.27397165,26342.0,26341.0,1.09975447]
[1693508217369,1.27397165,26342.0,26341.0,1.09575447]
[1693508217849,1.28197165,26342.0,26341.0,1.09575447]
[1693508218032,0.71253965,26342.0,26341.0,1.09475447]
[1693508218269,0.71253965,26342.0,26341.0,0.001]
[1693508218445,0.71253965,26342.0,26341.0,1.09475447]
[1693508218648,0.71253965,26342.0,26337.0,1.139076]
[1693508218882,0.49193114,26342.0,26341.0,0.002]
[1693508219082,0.3368588,26342.0,26341.0,0.002]
[1693508219215,0.9162908,26342.0,26341.0,0.004]
[1693508219419,0.9162908,26342.0,26341.0,0.002]
[1693508219849,0.03952438,26338.0,26337.0,0.569538]
[1693508220045,0.03952438,26338.0,26337.0,1.6644244]
[1693508220934,0.03952438,26338.0,26337.0,1.6814244]
[1693508221518,0.03952438,26338.0,26337.0,1.7194244]
[1693508221950,0.68185692,26338.0,26337.0,1.1498864]
[1693508222164,1.34156161,26338.0,26337.0,1.1498864]
[1693508222374,1.90089492,26338.0,26337.0,1.1328864]
[1693508222582,1.90189492,26338.0,26337.0,0.075]
[1693508222797,1.90189492,26338.0,26337.0,0.037]
[1693508223229,0.01956058,26333.0,26332.0,1.139278]
[1693508223410,0.01956058,26333.0,26332.0,1.134278]
[1693508224486,0.1513,26336.0,26332.0,2.3082363]
[1693508224487,0.19082438,26336.0,26332.0,2.3082363]
[1693508224701,0.03952438,26335.0,26333.0,0.32]
[1693508224907,0.05952438,26336.0,26335.0,0.1539]
[1693508225112,0.05952438,26336.0,26335.0,0.723484]
[1693508225334,0.03952438,26338.0,26335.0,2.0314949]
[1693508225545,0.2464,26339.0,26338.0,0.1539]
[1693508225546,0.03952438,26339.0,26338.0,0.1539]
[1693508225773,0.03952438,26339.0,26338.0,1.882457]
[1693508226789,0.03952438,26339.0,26338.0,1.139038]
[1693508227190,0.03952438,26339.0,26338.0,1.156038]
[1693508228008,0.03952438,26339.0,26338.0,0.03]
[1693508228743,0.03952438,26339.0,26338.0,0.599519]
[1693508228949,0.03952438,26339.0,26338.0,1.169038]
[1693508231608,0.03952438,26339.0,26338.0,1.738557]
[1693508234111,0.03952438,26339.0,26338.0,1.169038]
[1693508235933,0.03952438,26339.0,26338.0,0.03]
[1693508236135,0.40720523,26339.0,26338.0,0.03]
[1693508237890,0.70595621,26339.0,26338.0,0.03]
[1693508238136,0.89044443,26339.0,26338.0,0.03]
[1693508238361,1.45994143,26339.0,26338.0,0.03]
[1693508238644,1.27545321,26339.0,26338.0,0.03]
[1693508238847,1.84495021,26339.0,26338.0,0.03]
[1693508239381,1.27545321,26339.0,26338.0,0.03]
[1693508242633,0.70595621,26339.0,26338.0,0.03]
[1693508244378,1.39095321,26339.0,26338.0,0.03]
[1693508246454,1.36519365,26339.0,26338.0,0.03]
[1693508246672,3.44485741,26339.0,26338.0,0.03]
[1693508246888,3.48964168,26339.0,26338.0,0.03]
[1693508247097,0.01956058,26327.0,26326.0,0.569765]
[1693508247306,0.01956058,26326.0,26325.0,1.139575]
[1693508247517,0.16663292,26326.0,26325.0,0.569787]
[1693508248138,0.01956058,26325.0,26323.0,1.139672]
[1693508248347,0.01956058,26325.0,26323.0,0.569831]
[1693508248348,0.01956058,26324.0,26323.0,0.569831]
[1693508248567,0.01956058,26324.0,26323.0,1.139662]
[1693508249605,0.01956058,26324.0,26323.0,1.37066859]
[1693508250018,0.01956058,26324.0,26323.0,1.139662]
[1693508250425,0.01956058,26324.0,26323.0,1.163662]
[1693508250629,0.01956058,26324.0,26323.0,1.152662]
[1693508250837,0.01956058,26324.0,26323.0,1.825005]
[1693508250963,0.02056058,26324.0,26323.0,1.957325]
[1693508251165,0.02256058,26324.0,26323.0,2.29109719]
[1693508251372,0.02256058,26324.0,26323.0,1.972865]
[1693508251575,0.02256058,26324.0,26323.0,1.896005]
[1693508251777,0.02256058,26324.0,26323.0,1.326162]
[1693508252276,0.02256058,26324.0,26323.0,1.21113019]
[1693508252909,0.02256058,26324.0,26323.0,1.19113019]
[1693508259405,0.02256058,26324.0,26323.0,0.05146819]
[1693508259631,0.04256058,26324.0,26323.0,0.05146819]
[1693508262006,0.41024143,26324.0,26323.0,0.05146819]
[1693508267683,0.04256058,26324.0,26323.0,1.19115419]
[1693508269377,0.04256058,26324.0,26323.0,1.43096241]
[1693508269589,0.04256058,26324.0,26323.0,2.00080541]
[1693508270012,0.04256058,26324.0,26323.0,1.76099719]
[1693508271449,0.04256058,26324.0,26323.0,1.76088714]
[1693508272552,0.15560058,26324.0,26323.0,1.76088714]
[1693508275455,0.15560058,26324.0,26323.0,1.89648714]
[1693508277415,0.15560058,26324.0,26323.0,1.19104414]
[1693508280982,0.15560058,26324.0,26323.0,0.05135814]
[1693508281609,0.79998905,26324.0,26323.0,0.05135814]
[1693508282437,0.15560058,26324.0,26323.0,0.05135814]
[1693508282641,0.15560058,26324.0,26323.0,1.30664414]
[1693508282847,0.15560058,26324.0,26323.0,1.89648714]
[1693508286326,0.15560058,26324.0,26323.0,0.73680114]
[1693508286531,0.15560058,26324.0,26323.0,0.62120114]
[1693508287163,0.34560058,26324.0,26323.0,0.62120114]
[1693508292547,0.34560058,26324.0,26323.0,0.71125175]
[1693508294444,0.34560058,26324.0,26323.0,0.62120114]
[1693508296542,0.62587271,26324.0,26323.0,0.05135814]
[1693508297561,0.99355356,26324.0,26323.0,0.05135814]
[1693508297917,0.99155356,26324.0,26323.0,0.02435814]
[1693508298116,0.99155356,26324.0,26323.0,0.02535814]
[1693508298321,0.99055356,26324.0,26323.0,0.00146819]
[1693508298503,0.99055356,26324.0,26323.0,0.00046819]
[1693508298841,0.99155356,26324.0,26323.0,0.00046819]
[1693508299016,0.99055356,26324.0,26323.0,0.00146819]
[1693508299241,0.99155356,26324.0,26323.0,0.001]
[1693508299819,3.08694413,26324.0,26323.0,0.001]
[1693508300019,3.03023183,26324.0,26323.0,0.001]
[1693508300404,0.03956058,26319.0,26318.0,0.020301]
[1693508300602,0.18663292,26319.0,26318.0,0.020301]
[1693508300804,0.03956058,26319.0,26318.0,0.020301]
[1693508301397,0.03956058,26319.0,26318.0,0.02083096]
[1693508302004,0.2868859,26319.0,26318.0,0.02083096]
[1693508302432,0.47673529,26319.0,26318.0,0.02083096]
[1693508302611,0.48773529,26319.0,26318.0,0.02083096]
[1693508305251,2.66189107,26319.0,26318.0,0.02083096]
[1693508306177,2.09196107,26319.0,26318.0,0.02083096]
[1693508306398,2.09196107,26319.0,26318.0,0.020301]
[1693508307155,2.09196107,26319.0,26318.0,0.02083265]
[1693508308127,2.06796107,26319.0,26318.0,0.02083265]
[1693508308309,2.10296107,26319.0,26318.0,0.02383265]
[1693508308505,2.13796107,26319.0,26318.0,0.02683265]
[1693508308806,2.10296107,26319.0,26318.0,0.02383265]
[1693508310217,2.13796107,26319.0,26318.0,0.02683265]
[1693508315462,2.02236107,26319.0,26318.0,0.02683265]
[1693508318351,1.79395082,26319.0,26318.0,0.02683265]
[1693508321219,1.61710143,26319.0,26318.0,0.02683265]
[1693508324597,0.08956058,26319.0,26318.0,1.91720865]
[1693508324802,0.08956058,26319.0,26318.0,1.91696865]
[1693508325014,0.08956058,26319.0,26318.0,1.91678865]
[1693508325218,0.08956058,26319.0,26318.0,1.85228865]
[1693508325617,0.10956058,26319.0,26318.0,1.85228865]
[1693508329337,0.08956058,26319.0,26318.0,1.85228865]
[1693508329549,0.10956058,26319.0,26318.0,1.85228865]
[1693508331308,0.07,26319.0,26318.0,1.85228865]
[1693508331509,0.07,26319.0,26318.0,2.25454865]
[1693508331716,0.07,26319.0,26318.0,2.26990865]
[1693508331933,0.07,26319.0,26318.0,2.38760655]
[1693508332141,0.07,26319.0,26318.0,3.14329503]
[1693508332367,0.035,26319.0,26318.0,4.45924644]
[1693508332576,0.06,26319.0,26318.0,4.44972644]
[1693508332791,0.06,26319.0,26318.0,4.75776586]
[1693508332972,0.06,26319.0,26318.0,4.90482586]
[1693508332973,0.025,26319.0,26318.0,4.90482586]
[1693508333209,0.048,26319.0,26318.0,4.90610586]
[1693508333586,0.048,26319.0,26318.0,4.90110586]
[1693508333818,0.01956058,26323.0,26320.0,0.1156]
[1693508334036,0.01956058,26323.0,26322.0,0.1156]
[1693508334246,0.01956058,26323.0,26322.0,1.27533]
[1693508334448,0.30304,26324.0,26322.0,1.845195]
[1693508334647,0.30304,26324.0,26323.0,0.4156]
[1693508334855,0.30304,26324.0,26323.0,2.201149]
[1693508335054,0.30304,26324.0,26323.0,2.49224754]
[1693508335456,0.30304,26324.0,26323.0,2.49344754]
[1693508335679,0.30304,26324.0,26323.0,2.49290754]
[1693508335879,0.30304,26324.0,26323.0,2.48552754]
[1693508336086,0.30304,26324.0,26323.0,2.86840839]
[1693508336265,0.30304,26324.0,26323.0,3.03398629]
[1693508336496,0.33904,26324.0,26323.0,3.03152629]
[1693508336709,0.33904,26324.0,26323.0,3.02282629]
[1693508336886,0.30304,26324.0,26323.0,3.02198629]
[1693508337089,0.30304,26324.0,26323.0,3.01496629]
[1693508337294,0.31204,26324.0,26323.0,3.01598629]
[1693508337499,0.33604,26324.0,26323.0,3.00806629]
[1693508337700,0.32704,26324.0,26323.0,2.62130544]
[1693508337911,0.30304,26324.0,26323.0,2.61806544]
[1693508338114,0.30304,26324.0,26323.0,2.63126544]
[1693508338315,0.30304,26324.0,26323.0,2.6338535]
[1693508338515,0.30404,26324.0,26323.0,2.6473935]
[1693508338720,0.30404,26324.0,26323.0,2.6503335]
[1693508338920,0.30404,26324.0,26323.0,2.6492535]
[1693508339326,0.30404,26324.0,26323.0,2.6490135]
[1693508339741,0.30404,26324.0,26323.0,2.6473935]
[1693508339949,0.30404,26324.0,26323.0,2.81241976]
[1693508340161,0.30404,26324.0,26323.0,2.72857976]
[1693508340405,0.30404,26324.0,26323.0,2.80173976]
[1693508340625,0.30404,26324.0,26323.0,2.5756935]
[1693508340844,0.30404,26324.0,26323.0,2.6556935]
[1693508341474,0.30404,26324.0,26323.0,2.7601535]
[1693508341697,0.30404,26324.0,26323.0,2.80275976]
[1693508341898,0.30404,26324.0,26323.0,2.80029976]
[1693508342123,0.30404,26324.0,26323.0,2.79957976]
[1693508342327,0.30404,26324.0,26323.0,2.79837976]
[1693508342536,0.30404,26324.0,26323.0,2.79807976]
[1693508342744,0.30404,26324.0,26323.0,2.78751976]
[1693508342949,0.30404,26324.0,26323.0,2.78073976]
[1693508343149,0.30404,26324.0,26323.0,2.78031976]
[1693508343351,0.30218839,26324.0,26323.0,2.77977976]
[1693508343559,0.30218839,26324.0,26323.0,2.78241976]
[1693508343739,0.30218839,26324.0,26323.0,2.78031976]
[1693508343967,0.30218839,26324.0,26323.0,2.78049976]